bitfinex/quotes_SOLUSD_20250712
["timestamp","ask_amount","ask_price","bid_price","bid_amount"]
[1752282259511,5.9655338,163.23,163.17,89.07]
[1752282259707,5.9655338,163.23,163.18,18.4055338]
[1752282260003,5.9655338,163.24,163.19,6.6255338]
[1752282260203,5.9655338,163.24,163.2,13.1]
[1752282260403,5.9655338,163.24,163.21,0.66]
[1752282260604,5.9655338,163.25,163.22,12.44]
[1752282260820,5.9655338,163.24,163.22,12.44]
[1752282262131,5.9655338,163.23,163.21,89.07]
[1752282262439,0.16,163.23,163.22,12.44]
[1752282262606,6.1255338,163.23,163.22,12.44]
[1752282263712,6.1255338,163.23,163.21,89.07]
[1752282264027,6.1255338,163.22,163.21,89.07]
[1752282264210,16.78468397,163.27,163.21,89.07]
[1752282264211,0.16,163.24,163.21,101.51]
[1752282264412,5.9655338,163.22,163.21,101.51]
[1752282264610,5.9655338,163.23,163.21,101.51]
[1752282264813,5.9655338,163.23,163.21,102.17]
[1752282265036,5.9655338,163.23,163.21,101.51]
[1752282265832,5.9655338,163.23,163.21,102.17]
[1752282267943,5.9655338,163.24,163.22,0.66]
[1752282268116,5.9655338,163.24,163.23,12.44]
[1752282271740,0.16,163.26,163.23,12.44]
[1752282272037,5.9655338,163.24,163.23,12.44]
[1752282274837,6.1255338,163.24,163.22,89.07]
[1752282275037,0.16,163.24,163.23,12.42]
[1752282275369,5.9655338,163.24,163.23,12.42]
[1752282278924,6.1255338,163.24,163.23,12.42]
[1752282279528,6.1255338,163.24,163.22,89.07]
[1752282279730,6.1255338,163.23,163.22,101.49]
[1752282279933,22.91021777,163.23,163.22,89.07]
[1752282283146,22.91021777,163.23,163.2,12.42]
[1752282283448,5.9655338,163.21,163.2,12.42]
[1752282283741,6.1255338,163.21,163.15,0.66]
[1752282283945,16.78468397,163.23,163.15,0.66]
[1752282283946,5.9655338,163.16,163.15,89.73]
[1752282284138,5.9655338,163.16,163.15,102.15]
[1752282284333,5.9655338,163.17,163.15,102.15]
[1752282284646,5.9655338,163.17,163.15,101.49]
[1752282284834,5.9655338,163.17,163.16,0.69]
[1752282288649,5.9655338,163.18,163.16,0.69]
[1752282288848,5.9655338,163.18,163.17,12.42]
[1752282289152,0.16,163.21,163.17,102.18]
[1752282289153,5.9655338,163.2,163.17,102.18]
[1752282289353,5.9655338,163.22,163.18,0.69]
[1752282289644,5.9655338,163.22,163.19,12.42]
[1752282289844,5.9655338,163.22,163.19,13.11]
[1752282291650,5.9655338,163.22,163.2,0.69]
[1752282291868,5.9655338,163.22,163.21,12.42]
[1752282294345,6.1255338,163.22,163.2,101.49]
[1752282294547,5.9655338,163.21,163.2,89.07]
[1752282294744,5.9655338,163.21,163.2,101.49]
[1752282295044,5.9655338,163.21,163.2,89.07]
[1752282295366,6.1255338,163.21,163.2,101.49]
[1752282297257,5.9655338,163.21,163.2,101.49]
[1752282297956,5.9655338,163.21,163.2,12.42]
[1752282298756,0.03,163.24,163.2,2.2517]
[1752282298961,5.9955338,163.24,163.21,13.15]
[1752282299261,5.9955338,163.24,163.22,0.69]
[1752282299556,16.78468397,163.22,163.15,1.5617]
[1752282299760,5.9655338,163.2,163.18,0.69]
[1752282299964,5.9655338,163.21,163.19,13.15]
[1752282301064,5.9655338,163.2,163.19,13.15]
[1752282301242,5.9655338,163.21,163.19,13.15]
[1752282301638,5.9655338,163.23,163.2,0.69]
[1752282301846,5.9655338,163.23,163.21,12.48]
[1752282302063,5.9655338,163.23,163.21,13.17]
[1752282302566,31.9955338,163.24,163.22,0.69]
[1752282302750,5.9655338,163.23,163.22,0.69]
[1752282303767,5.9655338,163.23,163.21,12.48]
[1752282303950,5.9655338,163.22,163.21,13.17]
[1752282304151,5.9655338,163.22,163.19,0.69]
[1752282304345,5.9655338,163.2,163.17,0.69]
[1752282304540,5.9655338,163.18,163.17,0.69]
[1752282304740,5.9655338,163.18,163.17,13.15]
[1752282306368,0.16,163.22,163.17,13.15]
[1752282306552,5.9655338,163.18,163.17,12.46]
[1752282307067,16.78468397,163.23,163.17,13.15]
[1752282307359,5.9655338,163.19,163.17,13.15]
[1752282307562,5.9655338,163.18,163.17,13.15]
[1752282309967,5.9655338,163.18,163.17,12.46]
[1752282310262,5.9655338,163.19,163.17,13.15]
[1752282311574,16.97468397,163.23,163.18,0.69]
[1752282311752,5.9655338,163.21,163.18,89.79]
[1752282312069,0.03,163.23,163.19,13.15]
[1752282312272,0.03,163.23,163.2,0.69]
[1752282312473,0.03,163.23,163.21,12.46]
[1752282312773,0.03,163.23,163.21,13.15]
[1752282312944,0.03,163.23,163.22,0.69]
[1752282313145,5.9955338,163.23,163.22,0.69]
[1752282313380,5.9955338,163.23,163.21,12.46]
[1752282313664,5.9955338,163.23,163.21,13.15]
[1752282314764,5.9955338,163.23,163.21,12.46]
[1752282315163,5.9955338,163.23,163.21,13.12]
[1752282315673,5.9955338,163.23,163.22,0.66]
[1752282315674,0.03,163.23,163.22,0.66]
[1752282316876,0.03,163.23,163.22,6.6255338]
[1752282317873,0.03,163.23,163.22,95.7255338]
[1752282320269,0.03,163.23,163.22,89.76]
[1752282321175,0.03,163.23,163.22,95.7255338]
[1752282322378,5.5255338,163.27,163.22,95.7255338]
[1752282322551,5.5255338,163.27,163.23,13.12]
[1752282322753,5.9655338,163.26,163.24,0.66]
[1752282322979,5.9655338,163.26,163.25,12.46]
[1752282323357,6.1255338,163.26,163.24,12.44]
[1752282323567,5.9655338,163.25,163.24,12.44]
[1752282326179,5.9655338,163.25,163.24,13.1]
[1752282326960,5.9655338,163.25,163.24,12.44]
[1752282330167,5.9655338,163.25,163.24,13.1]
[1752282330482,5.9655338,163.25,163.24,12.44]
[1752282332484,5.9655338,163.25,163.23,0.66]
[1752282332676,5.9655338,163.24,163.23,13.1]
[1752282336285,5.9655338,163.24,163.23,12.44]
[1752282336489,22.91021777,163.24,163.19,89.76]
[1752282336801,16.94468397,163.24,163.2,13.1]
[1752282336989,5.9655338,163.21,163.2,12.44]
[1752282337498,5.9655338,163.21,163.2,13.1]
[1752282337667,5.9655338,163.22,163.2,13.1]
[1752282338086,5.9655338,163.21,163.2,13.1]
[1752282338467,5.9655338,163.21,163.2,12.44]
[1752282338878,5.9655338,163.21,163.19,12.44]
[1752282339191,5.9655338,163.21,163.19,13.1]
[1752282339397,5.9655338,163.21,163.2,0.66]
[1752282340097,16.78468397,163.24,163.2,0.66]
[1752282340281,5.9655338,163.22,163.2,0.66]
[1752282340485,5.9655338,163.22,163.19,12.44]
[1752282340684,5.9655338,163.22,163.21,0.66]
[1752282341590,5.9655338,163.22,163.19,12.44]
[1752282341902,5.9655338,163.22,163.2,0.66]
[1752282342796,5.9655338,163.22,163.21,0.66]
[1752282343000,0.03,163.25,163.21,0.66]
[1752282343001,5.9655338,163.23,163.21,0.66]
[1752282343583,0.19,163.25,163.21,0.66]
[1752282343787,5.9655338,163.22,163.21,0.66]
[1752282343981,5.9655338,163.23,163.21,0.66]
[1752282344182,0.03,163.25,163.22,0.72]
[1752282344396,5.9655338,163.24,163.22,0.72]
[1752282345502,5.9655338,163.24,163.23,0.72]
[1752282346590,5.9655338,163.24,163.19,107.5055338]
[1752282346782,5.9655338,163.24,163.21,0.72]
[1752282347198,16.78468397,163.21,163.16,0.06]
[1752282347498,5.9655338,163.17,163.16,0.06]
[1752282348493,5.9655338,163.17,163.16,0.78]
[1752282349099,6.1255338,163.2,163.16,0.06]
[1752282349297,5.9655338,163.17,163.16,0.06]
[1752282350198,5.9655338,163.17,163.16,0.78]
[1752282350699,5.9655338,163.2,163.16,0.78]
[1752282350902,5.9655338,163.17,163.16,0.06]
[1752282351503,5.9655338,163.17,163.16,0.78]
[1752282353394,0.16,163.2,163.16,0.78]
[1752282353609,5.9655338,163.17,163.16,0.78]
[1752282354509,6.1255338,163.17,163.16,0.06]
[1752282354994,22.91021777,163.17,163.16,0.06]
[1752282356014,22.75021777,163.17,163.16,0.06]
[1752282356517,22.91021777,163.17,163.16,0.06]
[1752282357015,22.75021777,163.17,163.16,0.06]
[1752282357408,5.9655338,163.17,163.16,0.78]
[1752282358111,16.78468397,163.18,163.16,0.78]
[1752282358321,5.9655338,163.17,163.16,0.06]
[1752282358529,26.0,163.18,163.16,0.06]
[1752282358715,31.9655338,163.18,163.16,0.06]
[1752282359022,31.9655338,163.18,163.17,0.72]
[1752282359199,1.6199,163.26,163.17,0.72]
[1752282359401,5.9655338,163.2,163.17,0.72]
[1752282359601,0.03,163.25,163.17,0.72]
[1752282359900,16.81468397,163.25,163.17,0.72]
[1752282360094,5.9655338,163.22,163.17,6.6855338]
[1752282360302,16.78468397,163.24,163.18,6.6855338]
[1752282360502,0.03,163.25,163.21,7.5965338]
[1752282361015,0.03,163.25,163.22,0.72]
[1752282361314,0.03,163.25,163.23,12.46]
[1752282361617,0.03,163.25,163.23,18.4255338]
[1752282361789,5.9655338,163.24,163.23,0.72]
[1752282361992,5.9655338,163.24,163.22,12.46]
[1752282362396,5.9655338,163.24,163.22,13.18]
[1752282362713,5.9655338,163.24,163.23,0.72]
[1752282363014,5.9655338,163.24,163.2,12.46]
[1752282363217,5.9655338,163.21,163.2,12.46]
[1752282363401,5.9655338,163.21,163.19,13.18]
[1752282363603,5.9655338,163.2,163.19,13.18]
[1752282363824,5.9655338,163.21,163.19,13.18]
[1752282364001,5.9655338,163.21,163.19,12.46]
[1752282364201,5.9655338,163.21,163.2,0.72]
[1752282366824,5.9655338,163.21,163.19,12.46]
[1752282367022,5.9655338,163.2,163.18,13.18]
[1752282367229,5.9655338,163.19,163.18,101.56]
[1752282367413,5.9655338,163.19,163.18,102.28]
[1752282367618,5.9655338,163.2,163.18,102.28]
[1752282367922,5.9655338,163.2,163.19,0.72]
[1752282369012,5.9655338,163.21,163.19,0.72]
[1752282369422,5.9655338,163.21,163.2,0.72]
[1752282370418,26.0,163.23,163.2,0.72]
[1752282370622,5.9655338,163.21,163.2,0.72]
[1752282371330,26.0,163.23,163.2,0.72]
[1752282371512,5.9655338,163.21,163.2,0.72]
[1752282371709,0.19,163.25,163.2,0.72]
[1752282371922,0.03,163.25,163.21,0.72]
[1752282372212,5.9655338,163.23,163.22,0.72]
[1752282375025,0.03,163.25,163.22,0.72]
[1752282375227,5.9655338,163.24,163.18,18.4255338]
[1752282375411,5.9655338,163.24,163.23,0.67]
[1752282376631,0.03,163.25,163.23,0.67]
[1752282376632,5.9955338,163.25,163.23,0.67]
[1752282376826,5.9655338,163.24,163.23,0.67]
[1752282378723,5.9955338,163.25,163.23,0.67]
[1752282378919,5.9955338,163.25,163.24,0.67]
[1752282379435,5.9955338,163.25,163.22,89.1]
[1752282379739,5.9655338,163.23,163.22,89.1]
[1752282380536,22.91021777,163.23,163.22,89.1]
[1752282381832,22.91021777,163.23,163.16,149.46]
[1752282381833,48.91021777,163.23,163.16,89.16]
[1752282382037,5.9655338,163.17,163.16,0.06]
[1752282382217,5.9655338,163.17,163.16,101.6]
[1752282382532,5.9655338,163.17,163.16,102.27]
[1752282385129,5.9655338,163.18,163.16,102.27]
[1752282385337,5.9655338,163.18,163.17,0.67]
[1752282387748,16.78468397,163.21,163.17,0.67]
[1752282387955,5.9655338,163.18,163.16,101.6]
[1752282388542,5.9655338,163.18,163.17,0.67]
[1752282392931,5.9655338,163.18,163.16,89.16]
[1752282392932,6.1255338,163.18,163.16,89.16]
[1752282393138,5.9655338,163.17,163.16,89.16]
[1752282393362,5.9655338,163.17,163.16,0.06]
[1752282395355,5.9655338,163.17,163.16,0.73]
[1752282396140,5.9655338,163.17,163.16,12.48]
[1752282396852,5.9655338,163.17,163.16,13.15]
[1752282397643,5.9655338,163.17,163.16,12.48]
[1752282398759,6.1255338,163.17,163.16,0.06]
[1752282399255,22.75021777,163.17,163.16,0.06]
[1752282400254,22.91021777,163.17,163.16,0.06]
[1752282400464,16.94468397,163.17,163.16,0.06]
[1752282400764,22.75021777,163.17,163.16,0.06]
[1752282401263,5.9655338,163.17,163.16,0.06]
[1752282409366,22.75021777,163.17,163.16,0.06]
[1752282417992,22.75021777,163.17,163.16,0.78]
[1752282418590,22.75021777,163.17,163.16,0.06]
[1752282421062,16.78468397,163.17,163.16,0.06]
[1752282421266,22.75021777,163.17,163.16,0.06]
[1752282431060,16.78468397,163.17,163.16,0.06]
[1752282431364,22.75021777,163.17,163.16,0.06]
[1752282432780,16.78468397,163.17,163.16,0.78]
[1752282433007,22.75021777,163.17,163.16,0.78]
[1752282433782,22.75021777,163.17,163.16,0.06]
[1752282434082,31.9655338,163.18,163.16,0.76]
[1752282434268,5.9655338,163.17,163.16,0.76]
[1752282434462,5.9655338,163.17,163.16,0.06]
[1752282434668,31.9655338,163.18,163.16,0.06]
[1752282435064,5.9655338,163.17,163.16,0.06]
[1752282435509,5.9655338,163.17,163.16,0.76]
[1752282435880,5.9655338,163.21,163.16,6.7255338]
[1752282436083,5.9655338,163.21,163.17,2.2482]
[1752282436278,5.9655338,163.21,163.18,13.12]
[1752282436592,5.9655338,163.21,163.19,0.7]
[1752282438871,22.75021777,163.22,163.19,0.7]
[1752282439892,5.9655338,163.24,163.19,6.6655338]
[1752282440088,5.9655338,163.24,163.2,0.7]
[1752282440690,5.9655338,163.23,163.2,0.7]
[1752282441293,5.9655338,163.22,163.18,18.7033]
[1752282441602,5.9655338,163.21,163.2,0.7]
[1752282441774,5.9655338,163.22,163.2,0.7]
[1752282442401,16.81468397,163.25,163.18,18.7033]
[1752282442402,5.9655338,163.21,163.18,18.7033]
[1752282442896,5.9655338,163.2,163.19,0.7]
[1752282443898,5.9655338,163.2,163.18,12.42]
[1752282443899,16.78468397,163.19,163.18,12.42]
[1752282444202,22.75021777,163.19,163.18,12.42]
[1752282445869,22.75021777,163.19,163.18,13.12]
[1752282446367,5.9655338,163.19,163.18,13.12]
[1752282447594,5.9655338,163.19,163.18,12.42]
[1752282447781,5.9655338,163.19,163.18,13.12]
[1752282448581,16.94468397,163.24,163.18,13.12]
[1752282448890,5.9655338,163.19,163.18,12.42]
[1752282449272,5.9655338,163.19,163.18,13.12]
[1752282450670,16.78468397,163.24,163.18,13.12]
[1752282450884,5.9655338,163.19,163.18,12.42]
[1752282451375,5.9655338,163.2,163.18,13.12]
[1752282451569,5.9655338,163.2,163.18,12.42]
[1752282451769,5.9655338,163.2,163.19,0.7]
[1752282459397,16.78468397,163.24,163.19,0.7]
[1752282459712,5.9655338,163.21,163.19,0.7]
[1752282460089,5.9655338,163.21,163.2,0.7]
[1752282461293,5.9655338,163.21,163.19,0.7]
[1752282461609,5.9655338,163.2,163.18,101.52]
[1752282462304,5.9655338,163.2,163.19,0.7]
[1752282462505,5.9655338,163.2,163.19,0.76]
[1752282462693,5.9655338,163.21,163.19,0.76]
[1752282464209,42.81468397,163.25,163.19,89.86]
[1752282464405,5.9655338,163.23,163.2,0.66]
[1752282464605,5.9655338,163.23,163.21,12.42]
[1752282464913,42.81468397,163.25,163.22,0.66]
[1752282465213,5.9655338,163.24,163.22,0.66]
[1752282465419,22.75021777,163.24,163.23,0.66]
[1752282466598,16.78468397,163.24,163.23,0.66]
[1752282466805,22.75021777,163.24,163.23,0.66]
[1752282469724,22.75021777,163.24,163.23,13.08]
[1752282470124,22.75021777,163.24,163.23,12.42]
[1752282470428,22.75021777,163.24,163.23,13.08]
[1752282471120,0.03,163.25,163.23,13.08]
[1752282471313,0.03,163.25,163.24,0.66]
[1752282475415,0.03,163.25,163.24,89.76]
[1752282475802,5.9955338,163.25,163.24,89.1]
[1752282476027,22.78021777,163.25,163.24,89.1]
[1752282477212,22.78021777,163.25,163.24,89.76]
[1752282478131,5.9955338,163.25,163.24,89.76]
[1752282479632,0.03,163.25,163.24,89.76]
[1752282480548,5.9955338,163.25,163.24,89.76]
[1752282481243,0.03,163.25,163.24,89.76]
[1752282481414,0.03,163.25,163.24,0.66]
[1752282481749,5.9955338,163.25,163.24,0.66]
[1752282481945,5.9955338,163.25,163.23,12.42]
[1752282482122,5.9655338,163.24,163.23,12.42]
[1752282482326,5.9955338,163.25,163.23,12.42]
[1752282482722,5.9955338,163.25,163.24,0.66]
[1752282483940,0.03,163.25,163.24,0.66]
[1752282484439,22.78021777,163.25,163.23,12.42]
[1752282484643,5.9655338,163.24,163.23,13.08]
[1752282485238,22.75021777,163.24,163.23,12.42]
[1752282485581,16.78468397,163.24,163.23,12.42]
[1752282485754,22.75021777,163.24,163.23,12.42]
[1752282486235,22.75021777,163.24,163.23,13.08]
[1752282486552,0.03,163.25,163.23,13.08]
[1752282486852,5.9655338,163.24,163.23,13.08]
[1752282493127,5.9655338,163.24,163.23,102.18]
[1752282494046,0.03,163.25,163.23,102.18]
[1752282494252,5.9955338,163.25,163.23,101.52]
[1752282494549,5.9955338,163.25,163.24,0.65]
[1752282494748,0.03,163.25,163.24,0.65]
[1752282494935,0.03,163.25,163.24,97.3031338]
[1752282495443,0.03,163.27,163.24,91.3376]
[1752282495649,0.03,163.27,163.25,0.65]
[1752282495838,0.03,163.27,163.26,12.42]
[1752282496348,0.03,163.27,163.26,13.07]
[1752282496866,5.9955338,163.27,163.26,13.07]
[1752282497635,0.03,163.27,163.26,13.07]
[1752282499252,0.03,163.27,163.26,102.17]
[1752282508075,5.9955338,163.27,163.26,101.52]
[1752282509150,5.9955338,163.27,163.26,102.17]
[1752282510761,5.9955338,163.27,163.26,101.52]
[1752282510940,5.9955338,163.27,163.26,12.42]
[1752282511341,5.9955338,163.27,163.25,0.06]
[1752282511559,5.9655338,163.26,163.25,0.06]
[1752282511773,5.9655338,163.26,163.25,12.48]
[1752282512069,5.9655338,163.26,163.25,0.06]
[1752282512444,18.38908397,163.31,163.25,0.06]
[1752282512445,0.1,163.42,163.27,7.1518]
[1752282512748,4.95104528,163.5,163.42,26.0]
[1752282513051,0.66,163.58,163.49,5.9655338]
[1752282513249,9.69152351,163.53,163.46,26.0]
[1752282513451,9.69152351,163.53,163.43,55.06]
[1752282513452,5.9655338,163.5,163.43,55.06]
[1752282513683,0.66,163.5,163.44,68.06]
[1752282513851,0.66,163.5,163.45,55.06]
[1752282514058,5.9655338,163.51,163.45,55.06]
[1752282514280,5.9655338,163.49,163.46,4.49841061]
[1752282514573,6.63829473,163.53,163.47,4.49841061]
[1752282514753,26.0,163.49,163.48,4.49841061]
[1752282514953,31.9655338,163.49,163.4,13.04]
[1752282515258,5.9655338,163.43,163.41,2.24574431]
[1752282515458,5.9655338,163.42,163.38,6.638295]
[1752282515781,5.9655338,163.41,163.38,13.08]
[1752282516067,0.66,163.41,163.38,13.08]
[1752282516280,5.9655338,163.41,163.38,13.08]
[1752282516484,5.9655338,163.42,163.38,13.08]
[1752282516847,9.87340707,163.42,163.38,13.08]
[1752282517064,9.87340707,163.42,163.38,13.73]
[1752282517270,26.0,163.47,163.39,0.65]
[1752282517472,9.87340707,163.42,163.39,0.65]
[1752282518056,26.0,163.48,163.39,0.65]
[1752282518257,9.87340707,163.42,163.39,0.65]
[1752282518757,9.87340707,163.41,163.39,0.65]
[1752282518952,9.87340707,163.41,163.38,13.08]
[1752282519154,9.87340707,163.41,163.38,13.73]
[1752282519565,0.66,163.45,163.39,0.65]
[1752282519766,9.87340707,163.44,163.39,0.65]
[1752282520149,9.87340707,163.43,163.4,0.65]
[1752282521746,9.87340707,163.42,163.38,13.73]
[1752282522677,9.87340707,163.42,163.39,0.65]
[1752282522881,9.87340707,163.42,163.39,89.75]
[1752282523762,9.87340707,163.43,163.39,89.75]
[1752282523965,9.87340707,163.43,163.39,0.65]
[1752282524678,0.66,163.45,163.39,0.65]
[1752282524851,9.87340707,163.43,163.39,0.65]
[1752282526194,0.66,163.45,163.39,0.65]
[1752282526355,9.87340707,163.43,163.39,0.65]
[1752282526563,0.69,163.46,163.4,0.67]
[1752282526766,9.87340707,163.47,163.41,9.87340707]
[1752282526968,9.87340707,163.45,163.42,17.1938507]
[1752282527157,0.69,163.47,163.43,6.34840492]
[1752282527357,9.87340707,163.45,163.44,2.23455422]
[1752282527585,10.56340707,163.46,163.44,2.23455422]
[1752282527879,10.56340707,163.46,163.45,2.23455422]
[1752282528967,0.69,163.46,163.45,2.23455422]
[1752282529188,10.56340707,163.46,163.45,2.23455422]
[1752282529692,0.69,163.46,163.45,2.23455422]
[1752282529861,10.56340707,163.46,163.45,2.23455422]
[1752282530488,0.69,163.46,163.45,2.23455422]
[1752282531160,0.03,163.47,163.45,2.23455422]
[1752282531360,10.59340707,163.47,163.46,2.23455422]
[1752282531661,9.90340707,163.47,163.46,2.23455422]
[1752282532462,10.59340707,163.47,163.46,2.23455422]
[1752282533086,10.59340707,163.47,163.42,13.75]
[1752282533287,9.87340707,163.46,163.43,4.11074117]
[1752282533584,9.87340707,163.46,163.42,13.75]
[1752282533777,9.87340707,163.46,163.43,4.11095745]
[1752282533962,9.87340707,163.46,163.42,13.75]
[1752282534163,9.87340707,163.46,163.43,4.11095727]
[1752282534358,9.87340707,163.46,163.42,13.75]
[1752282534573,10.56340707,163.46,163.43,4.11132955]
[1752282534877,10.56340707,163.46,163.42,102.18]
[1752282535180,9.87340707,163.46,163.43,4.11172118]
[1752282535364,10.56340707,163.46,163.44,4.11172118]
[1752282535570,10.56340707,163.45,163.42,102.18]
[1752282535773,0.69,163.44,163.43,4.11212503]
[1752282536076,0.03,163.47,163.43,4.11212503]
[1752282536254,9.87340707,163.44,163.42,13.08]
[1752282536460,0.69,163.44,163.43,4.11285921]
[1752282537175,0.69,163.44,163.43,3.21622371]
[1752282537563,6.61253659,163.44,163.43,3.21663809]
[1752282538760,6.61253659,163.44,163.4,13.02]
[1752282538967,5.92253659,163.42,163.41,3.21830364]
[1752282539163,6.61253659,163.42,163.41,3.21830364]
[1752282539363,23.39722056,163.42,163.41,3.21830364]
[1752282539679,23.39722056,163.42,163.36,102.12]
[1752282539873,0.69,163.41,163.37,3.22113403]
[1752282540190,5.92253659,163.39,163.38,3.22113403]
[1752282541265,16.78468397,163.42,163.38,3.22113403]
[1752282541572,5.92253659,163.4,163.36,13.69]
[1752282541772,6.61253659,163.4,163.37,3.22279541]
[1752282541978,6.61253659,163.4,163.36,13.69]
[1752282541979,6.61253659,163.4,163.38,3.22279541]
[1752282542179,5.92253659,163.39,163.36,13.69]
[1752282542367,5.92253659,163.39,163.37,3.22330376]
[1752282542570,5.92253659,163.39,163.38,3.22330376]
[1752282542771,5.92253659,163.39,163.37,3.22330376]
[1752282542975,5.92253659,163.38,163.34,89.1]
[1752282543287,26.0,163.39,163.35,3.22428508]
[1752282543472,26.69,163.39,163.36,3.22428508]
[1752282544185,32.61253659,163.39,163.37,3.22428508]
[1752282544490,32.61253659,163.39,163.38,3.22428508]
[1752282544886,32.61253659,163.39,163.36,16.22428508]
[1752282545086,32.61253659,163.39,163.37,3.22428508]
[1752282545636,5.92253659,163.39,163.37,3.22428508]
[1752282546489,6.61253659,163.4,163.37,3.22428508]
[1752282546994,10.56594513,163.4,163.37,3.22428508]
[1752282547487,10.56594513,163.4,163.36,13.0]
[1752282547488,9.87594513,163.39,163.38,3.22428508]
[1752282547689,9.87594513,163.39,163.37,3.22428508]
[1752282547890,9.87594513,163.39,163.38,3.22428508]
[1752282548190,10.56594513,163.39,163.38,3.22428508]
[1752282548386,10.56594513,163.39,163.37,3.22428508]
[1752282548595,0.69,163.39,163.38,3.22428508]
[1752282548781,9.87594513,163.39,163.38,3.22428508]
[1752282549089,9.87594513,163.4,163.36,13.67]
[1752282549708,9.87594513,163.4,163.37,0.67]
[1752282549910,9.87594513,163.4,163.37,0.73]
[1752282550405,9.87594513,163.39,163.37,0.06]
[1752282551705,9.87594513,163.38,163.37,0.06]
[1752282552890,26.6606291,163.38,163.37,0.06]
[1752282553980,28.1991291,163.38,163.37,0.06]
[1752282558118,41.1191291,163.38,163.37,0.06]
[1752282559308,41.4691291,163.38,163.37,0.06]
[1752282560292,16.78468397,163.38,163.37,0.06]
[1752282560597,0.35,163.4,163.37,0.06]
[1752282560800,9.87594513,163.38,163.37,0.06]
[1752282561322,26.0,163.38,163.37,0.06]
[1752282561620,35.87594513,163.38,163.37,0.06]
[1752282563289,26.0,163.38,163.37,0.06]
[1752282563495,35.87594513,163.38,163.37,0.06]
[1752282565423,26.0,163.38,163.37,0.06]
[1752282565716,35.87594513,163.38,163.37,0.06]
[1752282566911,31.92820513,163.38,163.37,0.06]
[1752282568296,26.0,163.38,163.37,0.73]
[1752282568499,31.92820513,163.38,163.37,0.73]
[1752282568820,31.92820513,163.38,163.37,0.06]
[1752282569199,26.0,163.38,163.37,0.06]
[1752282569699,31.92820513,163.38,163.37,0.06]
[1752282571528,26.0,163.38,163.37,0.73]
[1752282571828,0.03,163.39,163.37,0.73]
[1752282572433,0.03,163.39,163.37,6.65820513]
[1752282572924,0.03,163.39,163.38,0.67]
[1752282574116,0.03,163.39,163.37,0.06]
[1752282574313,0.03,163.39,163.37,0.73]
[1752282575429,0.03,163.39,163.38,0.67]
[1752282584446,0.03,163.39,163.37,0.06]
[1752282584447,6.30820513,163.39,163.37,0.06]
[1752282584737,6.27820513,163.38,163.37,0.06]
[1752282588943,5.92820513,163.38,163.37,0.06]
[1752282589541,6.27820513,163.38,163.37,0.06]
[1752282591432,49.0628891,163.38,163.37,0.06]
[1752282595421,61.8228891,163.38,163.37,0.06]
[1752282598937,41.75109423,163.38,163.37,0.06]
[1752282600650,41.75109423,163.38,163.31,0.71]
[1752282600651,42.78468397,163.34,163.31,0.71]
[1752282600846,5.92820513,163.32,163.27,6.1417]
[1752282601037,26.0,163.3,163.29,0.71]
[1752282601232,26.0,163.3,163.25,103.533]
[1752282601740,26.0,163.3,163.26,0.71]
[1752282602356,31.92820513,163.3,163.26,0.71]
[1752282604335,26.0,163.3,163.26,6.63820513]
[1752282604534,26.0,163.3,163.27,0.71]
[1752282605756,5.92820513,163.29,163.27,0.71]